bitfinex/quotes_ETHUSD_20241018
["timestamp","ask_amount","ask_price","bid_price","bid_amount"]
[1729277467519,1.17707777,2668.8,2668.0,0.9076]
[1729277467814,1.17707777,2669.0,2668.1,0.9196]
[1729277468025,1.17707777,2669.2,2668.2,0.9196]
[1729277468181,1.17707777,2669.4,2668.2,0.9196]
[1729277468378,1.17707777,2669.5,2668.3,0.9525]
[1729277469374,1.17707777,2669.4,2668.3,0.9525]
[1729277469895,1.17707777,2669.2,2668.3,0.9525]
[1729277470075,0.27465148,2669.1,2668.3,0.9525]
[1729277470282,1.70712925,2669.1,2668.3,0.9525]
[1729277470516,1.72707777,2669.0,2668.3,0.9525]
[1729277470692,4.72707777,2668.8,2668.3,0.9525]
[1729277471104,1.17707777,2668.7,2668.3,0.9525]
[1729277471417,0.57465148,2668.7,2668.3,0.9525]
[1729277472284,1.75172925,2668.7,2668.3,0.9525]
[1729277472486,4.98247777,2668.6,2667.3,0.9481]
[1729277472686,1.17707777,2668.5,2667.3,0.9481]
[1729277473502,1.72707777,2668.4,2667.3,0.9481]
[1729277473647,0.47270778,2668.3,2667.3,0.9481]
[1729277473842,1.72707777,2668.4,2667.3,0.9481]
[1729277474392,4.17707777,2668.5,2667.3,0.90370847]
[1729277474591,1.56943703,2668.6,2667.4,0.9172]
[1729277474592,1.17707777,2668.6,2667.4,0.9172]
[1729277475189,4.75172925,2668.7,2667.4,0.9172]
[1729277475549,1.17707777,2668.6,2667.4,0.9172]
[1729277476187,4.75172925,2668.7,2667.4,0.9172]
[1729277476388,1.8091944,2668.6,2667.4,0.9172]
[1729277476549,1.17707777,2668.5,2667.4,0.9172]
[1729277477185,1.8091944,2668.6,2667.4,0.9172]
[1729277477345,1.17707777,2668.5,2667.4,0.9172]
[1729277477545,1.17707777,2668.4,2667.4,0.9172]
[1729277477866,1.17707777,2668.5,2667.5,0.05701853]
[1729277478050,1.17707777,2668.5,2667.6,0.9137]
[1729277478404,1.17707777,2668.4,2667.7,0.9137]
[1729277478688,1.17707777,2668.3,2667.7,0.9137]
[1729277478849,1.17707777,2668.4,2667.7,0.9137]
[1729277479045,1.17707777,2668.5,2667.7,0.9137]
[1729277479252,1.17707777,2668.6,2667.7,0.9137]
[1729277480016,4.17707777,2668.7,2667.7,0.9137]
[1729277480312,1.17707777,2668.6,2667.7,0.9137]
[1729277480616,1.17707777,2668.9,2667.9,0.9003]
[1729277480986,1.17707777,2669.0,2667.9,0.9003]
[1729277482716,1.17707777,2669.0,2668.0,0.8961]
[1729277483099,1.64776086,2669.0,2668.0,0.8961]
[1729277483303,1.17707777,2668.9,2668.0,0.8961]
[1729277483909,1.17707777,2668.9,2668.1,0.8961]
[1729277487294,1.17707777,2668.8,2668.1,0.8961]
[1729277487630,1.17707777,2668.9,2668.1,0.8961]
[1729277487935,1.17707777,2668.8,2668.1,0.8961]
[1729277488084,1.69481105,2668.9,2668.1,0.8961]
[1729277488616,1.17707777,2668.7,2668.1,0.8961]
[1729277488926,1.56943703,2668.8,2668.1,0.8961]
[1729277488927,1.17707777,2668.6,2668.1,0.8961]
[1729277490904,1.17707777,2668.5,2668.1,0.8961]
[1729277491405,1.45172925,2668.5,2668.1,0.8961]
[1729277491817,1.17707777,2668.4,2668.1,0.8961]
[1729277492351,1.17707777,2668.4,2667.2,0.9703]
[1729277492352,1.17707777,2668.3,2667.2,0.9703]
[1729277493252,1.17707777,2668.2,2667.2,0.9703]
[1729277493854,1.45172925,2668.2,2667.2,0.9703]
[1729277494214,1.17707777,2668.2,2667.2,0.9703]
[1729277494414,1.56943703,2668.4,2667.3,0.8809]
[1729277494415,1.17707777,2668.3,2667.3,0.8809]
[1729277494749,1.17707777,2668.4,2667.3,0.8809]
[1729277496617,1.17707777,2668.3,2667.3,0.8809]
[1729277497424,1.17707777,2668.2,2667.3,0.8809]
[1729277497952,1.17707777,2668.3,2667.3,0.8809]
[1729277499329,1.64779939,2668.3,2667.3,0.8809]
[1729277501456,1.17707777,2668.1,2667.3,0.8809]
[1729277502218,1.17707777,2668.0,2667.3,0.8809]
[1729277502522,4.17707777,2668.0,2667.3,0.8809]
[1729277502830,1.17707777,2667.8,2667.3,0.8809]
[1729277503160,1.94781811,2667.8,2667.3,0.8809]
[1729277503519,0.77074034,2667.8,2667.3,0.8809]
[1729277504972,1.17707777,2668.0,2667.3,0.8809]
[1729277505153,1.17707777,2668.2,2667.3,0.8809]
[1729277505466,1.17707777,2668.5,2667.3,0.8809]
[1729277506068,1.17707777,2668.4,2667.3,0.8809]
[1729277506227,1.56943703,2668.5,2667.3,0.8809]
[1729277506228,1.45172925,2668.3,2667.3,0.8809]
[1729277506854,1.17707777,2668.3,2667.3,0.8809]
[1729277508269,1.56943703,2668.5,2667.3,0.8809]
[1729277508270,1.17707777,2668.2,2667.3,0.8809]
[1729277508833,1.17707777,2668.3,2667.3,0.8809]
[1729277509034,1.17707777,2668.2,2667.3,0.8809]
[1729277509465,1.17707777,2668.3,2667.3,0.8809]
[1729277509665,0.27465148,2668.2,2667.3,0.8809]
[1729277510665,1.45172925,2668.2,2667.3,0.8809]
[1729277510825,0.27465148,2668.2,2667.3,0.8809]
[1729277511654,1.17707777,2668.3,2667.3,0.8809]
[1729277512460,1.17707777,2668.4,2667.3,0.8809]
[1729277512867,1.17707777,2668.3,2667.3,0.8809]
[1729277513934,1.56943703,2668.4,2667.0,0.9063]
[1729277513935,1.17707777,2668.4,2667.0,0.9063]
[1729277514136,1.17707777,2668.3,2667.0,0.9063]
[1729277514377,0.27465148,2668.2,2667.2,0.9063]
[1729277514673,1.45172925,2668.2,2667.2,0.9063]
[1729277515359,0.27465148,2668.2,2667.2,0.9063]
[1729277515556,1.45172925,2668.2,2667.2,0.9063]
[1729277516644,1.17707777,2668.1,2667.2,0.9063]
[1729277516840,1.4791944,2668.0,2667.2,0.9063]
[1729277517075,1.17707777,2668.0,2667.2,0.9063]
[1729277517277,1.45172925,2668.2,2667.2,0.9063]
[1729277518873,1.17707777,2668.1,2667.2,0.9063]
[1729277519044,1.45172925,2668.2,2667.2,0.9063]
[1729277519382,1.17707777,2668.1,2667.2,0.9063]
[1729277519760,1.45172925,2668.2,2667.2,0.9063]
[1729277519945,0.30211663,2668.1,2667.2,0.9063]
[1729277520148,1.4791944,2668.1,2667.2,0.9063]
[1729277520351,0.30211663,2668.1,2667.2,0.9063]
[1729277522351,1.17707777,2668.0,2667.2,0.9063]
[1729277523084,1.17707777,2667.9,2667.2,0.9063]
[1729277523446,0.33043314,2667.9,2667.2,0.9063]
[1729277523766,1.17707777,2668.0,2667.2,0.9063]
[1729277523952,1.17707777,2668.2,2667.3,0.9432]
[1729277527285,1.17707777,2668.1,2667.3,0.9432]
[1729277528166,1.17707777,2668.0,2667.3,0.9432]
[1729277528367,1.17707777,2667.8,2667.3,0.9432]
[1729277528579,4.75172925,2667.7,2667.3,0.9432]
[1729277528749,1.75172925,2667.7,2667.3,0.9432]
[1729277529298,4.75172925,2667.7,2667.3,0.9432]
[1729277530420,1.75172925,2667.7,2667.3,0.9432]
[1729277530618,1.17707777,2667.6,2667.3,0.9432]
[1729277531416,1.17707777,2667.6,2666.7,0.9508]
[1729277533699,1.17707777,2667.5,2666.7,0.9508]
[1729277533916,1.82513703,2667.7,2666.7,0.9508]
[1729277533917,1.17707777,2667.4,2666.7,0.9508]
[1729277534080,1.45172925,2667.4,2666.7,0.9508]
[1729277534409,1.17707777,2667.2,2666.7,0.9508]
[1729277534929,1.17707777,2667.3,2666.7,0.9508]
[1729277536029,1.17707777,2667.4,2666.7,0.9508]
[1729277536212,1.17707777,2667.6,2666.7,0.9508]
[1729277536416,0.47077189,2667.6,2666.7,0.9508]
[1729277536613,1.64784966,2667.6,2666.7,0.9508]
[1729277536787,0.47077189,2667.6,2666.7,0.9508]
[1729277537137,1.17707777,2667.7,2666.7,0.9508]
[1729277537315,1.17707777,2667.6,2666.7,0.9508]
[1729277539229,1.17707777,2667.5,2666.7,0.9508]
[1729277540924,1.17707777,2667.4,2666.7,0.9508]
[1729277542199,1.17707777,2667.3,2666.7,0.9508]
[1729277542399,0.30017148,2667.2,2666.7,0.9508]
[1729277542596,1.17707777,2667.3,2666.7,0.9508]
[1729277543397,1.43227777,2667.4,2666.7,0.9508]
[1729277544034,1.17707777,2667.3,2666.7,0.9508]
[1729277544205,0.55,2667.2,2666.2,0.9118]
[1729277544408,1.17707777,2667.1,2666.2,0.9118]
[1729277544607,0.32965148,2667.0,2666.2,0.9118]
[1729277544846,1.50672925,2667.0,2666.2,0.9118]
[1729277545348,1.17707777,2666.8,2666.2,0.9118]
[1729277545717,1.72707777,2666.7,2665.7,0.9585]
[1729277546024,0.55,2666.5,2665.7,0.9585]
[1729277546201,1.17707777,2666.7,2665.7,0.9585]
[1729277546401,0.27465148,2666.6,2665.7,0.9585]
[1729277546739,1.17707777,2666.7,2665.7,0.9585]
[1729277547619,1.17707777,2666.8,2665.7,0.9585]
[1729277549864,0.55,2666.7,2665.7,0.9585]
[1729277550339,0.2552,2666.6,2665.7,0.9585]
[1729277550541,0.55,2666.5,2665.7,0.9585]
[1729277552070,1.43227777,2666.8,2665.7,0.9585]
[1729277552232,0.3529287,2666.7,2665.7,0.9585]
[1729277552436,0.55,2666.7,2665.7,0.9585]
[1729277553773,0.39011498,2666.9,2665.7,0.9585]
[1729277554383,1.43227777,2667.5,2665.7,0.9585]
[1729277554876,1.8223427,2667.5,2665.7,0.9585]
[1729277555674,0.55,2667.4,2665.7,0.9585]
[1729277557078,0.23723427,2667.4,2665.9,0.9426]
[1729277557249,19.95,2667.8,2665.9,0.9426]
[1729277557250,1.17707777,2667.8,2666.4,3.0]
[1729277557428,1.17707777,2667.8,2666.5,0.9426]
[1729277557632,0.2552,2667.9,2666.5,0.9426]
[1729277557633,0.2552,2667.6,2666.5,0.9426]
[1729277557866,1.43227777,2667.6,2666.5,0.9426]
[1729277558433,0.55,2667.5,2666.5,0.9426]
[1729277558634,0.19822778,2667.4,2666.5,0.9426]
[1729277558835,0.19822778,2667.4,2666.6,0.3746]
[1729277559067,0.19822778,2667.4,2666.5,0.9426]
[1729277560251,1.17707777,2667.7,2666.5,0.9426]
[1729277560743,0.55,2667.7,2666.5,0.9426]
[1729277561167,1.72707777,2667.7,2666.5,0.9426]
[1729277561377,0.55,2667.7,2666.5,0.9426]
[1729277562077,1.72707777,2667.7,2666.5,0.9426]
[1729277562483,0.55,2667.7,2666.5,0.9426]
[1729277563284,1.72707777,2667.7,2666.5,0.9426]
[1729277563455,0.19822778,2667.6,2666.5,0.9426]
[1729277564452,0.55,2667.5,2666.5,0.9426]
[1729277564970,1.72707777,2667.5,2666.5,0.9426]
[1729277565546,0.55,2667.3,2666.5,0.9426]
[1729277567283,1.72707777,2667.3,2666.5,0.9426]
[1729277568070,0.19820778,2667.2,2666.5,0.9426]
[1729277569287,1.17707777,2667.3,2666.5,0.9426]
[1729277569475,1.17707777,2667.5,2666.5,0.9426]
[1729277570878,1.17707777,2667.4,2666.5,0.9426]
[1729277572094,1.17707777,2667.3,2666.5,0.9426]
[1729277573412,1.17707777,2667.2,2666.5,0.9426]
[1729277573584,1.17707777,2667.1,2666.5,0.9426]
[1729277573756,0.27465148,2667.1,2666.5,0.9426]
[1729277575479,1.45172925,2667.1,2666.5,0.9426]
[1729277575805,0.27465148,2667.1,2666.5,0.9426]
[1729277576478,1.45172925,2667.1,2666.5,0.9426]
[1729277576674,0.27465148,2667.1,2666.5,0.9426]
[1729277576876,1.45172925,2667.1,2666.5,0.9426]
[1729277577203,0.30211663,2667.0,2666.5,0.9426]
[1729277577766,1.4791944,2667.0,2666.5,0.9426]
[1729277578104,1.17707777,2666.9,2666.5,0.9426]
[1729277578650,1.17707777,2666.7,2665.8,0.9071]
[1729277579374,1.17707777,2666.6,2665.8,0.9071]
[1729277579693,0.27465148,2666.6,2665.8,0.9071]
[1729277579900,1.45172925,2666.6,2665.8,0.9071]
[1729277582523,1.17707777,2666.5,2665.8,0.9071]
[1729277582829,1.17707777,2666.3,2665.8,0.9071]
[1729277583120,1.45172925,2666.2,2665.8,0.9071]
[1729277583325,0.55,2666.0,2664.8,0.8826]
[1729277583486,1.17707777,2665.9,2664.8,0.8826]
[1729277583829,1.17707777,2665.8,2664.8,0.8826]
[1729277584029,1.45172925,2665.7,2664.8,0.8826]
[1729277584621,1.17707777,2665.6,2664.8,0.8826]
[1729277584788,1.45172925,2665.7,2664.8,0.8826]
[1729277585526,0.27465148,2665.7,2664.8,0.8826]
[1729277585890,1.45172925,2665.7,2664.8,0.8826]
[1729277587119,0.32761663,2665.6,2664.8,0.8826]
[1729277587990,1.17707777,2665.7,2664.8,0.8826]
[1729277588186,1.17707777,2665.9,2664.8,3.0]
[1729277588509,1.17707777,2666.0,2664.9,0.9282]
[1729277588716,1.17707777,2665.9,2664.9,0.9282]
[1729277589019,1.17707777,2665.8,2664.9,0.9282]
[1729277589410,1.47722925,2665.7,2664.9,0.9282]
[1729277590000,0.30015148,2665.7,2664.9,0.9282]
[1729277590200,0.55,2665.8,2664.9,0.9282]
[1729277591029,1.72349238,2665.8,2664.9,0.9282]
[1729277592513,0.55,2665.8,2664.9,0.9282]
[1729277593101,0.38942135,2665.7,2664.9,0.9282]
[1729277593691,1.76048194,2666.1,2664.9,0.9282]
[1729277593804,0.35801384,2666.0,2664.9,0.9282]
[1729277595405,0.58698956,2666.1,2664.9,0.9282]
[1729277595838,0.38939886,2666.2,2664.9,0.9282]
[1729277596012,1.42939238,2666.6,2664.9,0.9282]
[1729277596338,1.17349238,2666.4,2664.9,0.9282]
[1729277596956,0.55,2666.3,2664.9,0.9282]
[1729277597236,0.55,2666.4,2664.9,0.9282]
[1729277597447,0.37144413,2666.3,2664.9,0.9282]
[1729277601063,0.37144413,2666.3,2665.0,0.9474]
[1729277601219,1.17349238,2666.9,2665.1,0.9474]
[1729277601420,8.64349238,2667.0,2665.1,0.9474]
[1729277601640,1.17349238,2666.9,2665.1,0.9474]
[1729277601960,7.85957937,2667.0,2665.8,0.9199]
[1729277602122,0.96801359,2666.9,2665.8,0.9199]
[1729277602316,0.38957937,2667.0,2665.8,0.9199]
[1729277602523,1.56307175,2667.0,2665.8,0.9199]
[1729277603017,0.38957937,2667.0,2665.8,0.9199]
[1729277603959,0.38957937,2667.0,2665.9,0.8923]
[1729277604162,1.81897175,2667.0,2665.9,0.8923]
[1729277604951,1.72349238,2666.9,2665.9,0.8923]
[1729277605267,1.56685521,2666.8,2665.9,0.8923]
[1729277606371,0.55,2666.7,2665.9,0.8923]
[1729277606777,0.39336283,2666.8,2665.9,0.8923]
[1729277607063,1.72349238,2666.9,2665.9,0.8923]
[1729277608127,0.55,2666.9,2665.9,0.8923]
[1729277608347,1.72349238,2666.9,2665.9,0.8923]
[1729277608667,1.56307175,2667.0,2665.9,0.8923]
[1729277609040,0.55,2666.9,2665.9,0.8923]
[1729277609363,0.21130718,2666.8,2665.9,0.8923]
[1729277610667,1.38479956,2666.8,2665.9,0.8923]
[1729277611372,0.21130718,2666.8,2665.9,0.8923]
[1729277612034,1.38479956,2666.8,2665.9,0.8923]
[1729277613868,1.72349238,2666.7,2665.9,0.8923]
[1729277614081,0.19347996,2666.6,2665.9,0.8923]
[1729277617159,1.36697234,2666.6,2665.9,0.8923]
[1729277617355,1.75655836,2666.6,2665.9,0.8923]
[1729277617563,0.55,2666.4,2665.9,0.8923]
[1729277617785,1.72349238,2666.4,2665.9,0.8923]
[1729277618060,1.17349238,2666.3,2665.9,0.8923]
[1729277618259,0.55,2666.4,2665.9,0.8923]
[1729277618260,1.72349238,2666.1,2665.9,0.8923]
[1729277618594,1.50230727,2666.0,2665.9,0.8923]
[1729277619100,0.32881489,2666.0,2665.9,0.8923]
[1729277619295,1.50230727,2666.0,2665.9,0.8923]
[1729277620894,0.32881489,2666.0,2665.9,0.8923]
[1729277621057,1.17349238,2666.1,2665.9,0.8923]
[1729277621259,1.17349238,2666.2,2665.9,0.8923]
[1729277621456,1.17349238,2666.1,2665.9,0.8923]
[1729277623404,1.17349238,2666.0,2665.9,0.8923]
[1729277624464,1.17349238,2666.1,2665.9,0.8923]
[1729277624780,1.17349238,2666.2,2665.9,0.8923]
[1729277625002,1.17349238,2666.3,2665.9,0.8923]
[1729277625203,1.64311639,2666.3,2665.9,0.8923]
[1729277625385,1.17349238,2666.3,2665.9,0.8923]
[1729277625589,1.17349238,2666.4,2665.9,0.8923]
[1729277626091,1.17349238,2666.5,2665.9,0.8923]
[1729277626495,1.17349238,2666.4,2665.9,0.8923]
[1729277626703,1.17349238,2666.6,2665.9,0.8923]
[1729277628781,1.17349238,2666.7,2665.9,0.8923]
[1729277631508,1.17349238,2666.8,2665.9,0.8923]
[1729277635724,1.17349238,2666.7,2665.9,0.8923]
[1729277637076,1.17349238,2666.6,2665.9,0.8923]
[1729277638818,1.17349238,2666.7,2665.9,0.8923]
[1729277638974,1.17349238,2666.7,2666.0,3.0]
[1729277639312,1.17349238,2666.6,2666.1,0.9375]
[1729277639510,0.46978071,2666.8,2666.1,0.9375]
[1729277639511,1.17349238,2666.8,2666.1,0.9375]
[1729277639676,1.17349238,2666.7,2666.1,0.9375]
[1729277645511,1.17349238,2666.6,2666.1,0.9375]
[1729277646344,1.17349238,2666.7,2666.1,0.9375]
[1729277647141,1.6434692,2666.7,2666.1,0.9375]
[1729277647344,1.17349238,2666.5,2666.1,0.9375]
[1729277648349,1.17349238,2666.6,2666.1,0.9375]
[1729277648905,1.17349238,2666.7,2666.1,0.9375]
[1729277649333,1.17349238,2666.6,2666.1,0.9375]
[1729277649517,1.44730727,2666.6,2666.1,0.9375]
[1729277650762,1.17349238,2666.5,2666.1,0.9375]
[1729277651108,1.17349238,2666.4,2666.1,0.9375]
[1729277651331,1.17349238,2666.3,2666.1,0.9375]
[1729277652846,1.17349238,2666.2,2666.1,0.9375]
[1729277653146,1.17349238,2666.3,2666.1,0.9375]
[1729277653344,1.44730727,2666.2,2665.9,0.9671]
[1729277653919,1.70480727,2666.2,2665.2,0.9244]
[1729277654119,1.44730727,2666.2,2665.2,0.9244]
[1729277654321,3.01196377,2666.2,2665.2,0.9244]
[1729277654652,1.47468876,2666.1,2665.3,0.9244]
[1729277654822,1.17349238,2665.9,2665.3,0.9244]
[1729277655040,1.5646565,2666.0,2665.3,0.9244]
[1729277655041,1.17349238,2666.0,2665.3,0.9244]
[1729277655658,1.17349238,2665.9,2665.3,0.9244]
[1729277655960,1.17349238,2665.8,2665.3,0.9244]
[1729277656119,0.78490563,2665.7,2665.3,0.9244]
[1729277656521,0.98074543,2665.7,2665.3,0.9244]
[1729277656752,0.78490563,2665.6,2665.3,0.9244]
[1729277658049,0.78490563,2665.5,2665.3,0.9244]
[1729277658671,0.78490563,2665.4,2665.3,0.9244]
[1729277658878,0.78490563,2665.5,2665.3,0.9244]
[1729277660264,1.15679506,2665.5,2665.3,0.9244]
[1729277660860,1.15679506,2665.5,2664.7,0.9768]
[1729277662096,1.04240563,2665.4,2664.7,0.9768]
[1729277662579,0.37188943,2665.5,2664.7,0.9768]
[1729277662580,1.15679506,2665.5,2664.7,0.9768]
[1729277662881,0.78490563,2665.4,2664.7,0.9768]
[1729277663084,1.15679506,2665.5,2664.7,0.9768]
[1729277663376,0.23302874,2665.4,2664.7,0.9768]
[1729277664944,0.78490563,2665.3,2664.7,0.9768]
[1729277665144,1.04240563,2665.3,2664.7,0.9768]
[1729277665347,0.78490563,2665.2,2664.4,0.9499]
[1729277665585,0.78490563,2665.1,2664.4,0.9499]
[1729277665882,0.98074543,2665.0,2664.4,0.9499]
[1729277667067,0.78490563,2664.9,2664.4,0.9499]
[1729277667391,0.2575,2664.8,2664.1,1.0944972]
[1729277667551,1.04240563,2664.8,2664.1,1.0944972]
[1729277668184,0.55,2664.2,2664.1,0.1323972]
[1729277668551,1.04240563,2664.4,2664.1,0.1323972]
[1729277669386,0.2575,2664.4,2664.1,0.1323972]
[1729277671090,0.8075,2664.2,2664.1,0.1323972]
[1729277674009,0.2575,2664.4,2664.1,0.1323972]
[1729277674310,0.55,2664.3,2664.1,0.1323972]
[1729277674679,0.2575,2664.4,2664.1,0.1323972]
[1729277679915,0.38885369,2664.6,2664.1,0.1323972]
[1729277680163,0.38885369,2664.6,2664.2,0.9642]
[1729277680279,0.2575,2665.2,2664.2,0.9642]
[1729277680620,0.38867369,2665.0,2664.2,0.9642]
[1729277681820,0.6484331,2665.5,2664.2,0.9642]
[1729277682023,0.38864062,2665.4,2664.2,0.9642]
[1729277683096,0.55,2665.3,2664.2,0.9642]
[1729277684739,0.38864062,2665.4,2664.3,0.9441]
[1729277684931,0.38864062,2665.4,2664.5,0.9441]
[1729277692836,0.55,2665.8,2664.5,0.9441]
[1729277693002,0.38855771,2665.8,2664.5,0.9441]
[1729277694131,0.8086,2665.7,2664.5,0.9441]
[1729277695644,1.59350563,2665.7,2664.5,0.9441]
[1729277695798,0.55,2665.5,2664.5,0.9441]
[1729277697510,1.33490563,2665.5,2664.5,0.9441]
[1729277697909,0.55,2665.3,2664.5,0.9441]
[1729277699847,1.33490563,2665.3,2664.5,0.9441]
[1729277700223,0.78490563,2665.4,2664.5,0.9441]
[1729277700420,0.98074543,2665.3,2664.5,0.9441]
[1729277702747,0.78490563,2665.2,2664.5,0.9441]
[1729277703629,0.78490563,2665.1,2664.5,0.9441]
[1729277705121,0.78490563,2665.0,2664.5,0.9441]
[1729277705543,0.78490563,2664.9,2664.5,0.9441]
[1729277705955,0.1958398,2664.8,2664.5,0.9441]
[1729277706362,0.98074543,2664.8,2664.5,0.9441]
[1729277706726,0.78490563,2664.7,2664.2,0.9464]
[1729277708238,0.78490563,2664.6,2664.2,0.9464]
[1729277708471,0.78490563,2664.7,2664.2,0.9464]
[1729277708671,0.78490563,2664.6,2664.2,0.9464]
[1729277709068,1.15679506,2664.7,2664.2,0.9464]
[1729277709430,0.78490563,2664.6,2664.2,0.9464]
[1729277710356,0.78490563,2664.5,2664.2,0.9464]
[1729277712965,0.78490563,2664.4,2664.2,0.9464]
[1729277713133,0.1958398,2664.3,2664.2,0.9464]
[1729277713442,0.98074543,2664.3,2664.1,0.1323972]
[1729277714573,0.55,2664.2,2664.1,0.1323972]
[1729277714959,2.5103396,2664.2,2664.1,0.1323972]
[1729277715351,0.55,2664.2,2664.1,0.1323972]
[1729277715557,1.14571473,2664.2,2664.1,0.1323972]
[1729277716068,0.55,2664.0,2663.4,0.1499]
[1729277716273,1.56835318,2663.5,2663.4,0.1499]
[1729277716575,0.78409973,2663.6,2663.4,0.1499]
[1729277716776,1.17620464,2663.7,2663.4,0.1499]
[1729277716777,0.78409973,2663.7,2663.4,0.1499]
[1729277717381,0.78409973,2663.8,2663.4,0.1499]
[1729277717543,0.78409973,2663.8,2663.4,0.0999]
[1729277718263,0.78409973,2663.6,2663.4,0.0999]
[1729277718799,0.78409973,2663.6,2663.3,0.972]
[1729277719288,0.78409973,2663.8,2663.3,0.972]
[1729277719694,0.78409973,2663.9,2663.3,0.972]
[1729277720049,0.78409973,2663.8,2663.3,0.972]
[1729277720250,0.78409973,2663.9,2663.3,0.972]
[1729277720890,1.13696548,2663.9,2663.3,0.972]
[1729277721060,0.78409973,2663.8,2663.3,0.972]
[1729277721588,1.13696548,2663.9,2663.3,0.972]
[1729277721885,0.78409973,2663.8,2663.3,0.972]
[1729277722649,1.13696548,2663.9,2663.3,0.972]
[1729277722959,0.23131701,2663.8,2663.3,0.972]
[1729277723292,1.13696548,2663.9,2663.3,0.972]
[1729277726188,0.35286575,2663.9,2663.3,0.972]
[1729277727083,1.13696548,2663.9,2663.3,0.972]
[1729277727371,0.78409973,2663.9,2663.3,0.972]
[1729277727578,1.33409973,2663.8,2663.3,0.972]
[1729277727758,0.78409973,2663.8,2663.3,0.972]
[1729277727959,0.78409973,2663.7,2663.3,0.972]
[1729277728195,0.19603044,2663.6,2663.3,0.972]
[1729277728746,0.78409973,2663.7,2663.3,0.972]
[1729277728952,0.78409973,2663.7,2662.9,0.942]
[1729277729659,0.78409973,2663.8,2662.9,0.942]
[1729277730551,0.78409973,2663.9,2662.9,0.942]
[1729277731862,0.2599,2663.8,2662.9,0.942]
[1729277732055,1.26602017,2663.8,2662.9,0.942]
[1729277733358,1.00612017,2663.8,2662.9,0.942]
[1729277733761,0.22202044,2663.8,2662.9,0.942]
[1729277734379,1.00612017,2663.8,2662.9,0.942]
[1729277737174,0.22202044,2663.8,2662.9,0.942]
[1729277738411,1.00612017,2663.8,2662.9,0.942]
[1729277739206,0.21823248,2663.7,2662.9,0.942]
[1729277739418,0.78409973,2663.9,2662.9,0.942]
[1729277739565,0.78409973,2664.1,2663.0,0.9686]
[1729277739760,1.11991446,2664.2,2663.0,0.9686]
[1729277739963,1.05279742,2664.1,2663.0,0.9686]
[1729277741418,0.78409973,2664.0,2663.0,0.9686]
[1729277741618,1.05279742,2664.1,2663.0,0.9686]
[1729277742381,0.78409973,2664.1,2663.0,0.9686]
[1729277742578,0.78409973,2664.3,2663.1,0.9053]
[1729277742808,0.78409973,2664.4,2663.1,0.9053]
[1729277743022,1.17620464,2664.5,2663.1,0.9053]
[1729277743023,0.78409973,2664.5,2663.1,0.9053]
[1729277743611,0.78409973,2664.4,2663.1,0.9053]
[1729277743916,0.45943044,2664.4,2663.1,0.9053]
[1729277744097,1.24353017,2664.4,2663.1,0.9053]
[1729277744508,0.78409973,2664.3,2663.1,0.9053]
[1729277744829,0.78409973,2664.2,2663.1,0.9053]
[1729277744981,0.78409973,2664.1,2663.1,0.9053]
[1729277745184,0.98013017,2664.1,2663.1,0.9053]
[1729277745595,0.19603044,2664.1,2663.1,0.9053]
[1729277746191,0.98013017,2664.1,2663.1,0.9053]
[1729277746686,0.19603044,2664.1,2663.1,0.9053]
[1729277746918,0.98013017,2664.1,2663.1,0.9053]
[1729277747316,0.21563348,2664.0,2663.1,0.9053]
[1729277747686,0.99973321,2664.0,2663.1,0.9053]
[1729277747888,0.21563348,2664.0,2663.1,0.9053]
[1729277748198,0.99973321,2664.0,2663.1,0.9053]
[1729277749712,0.78409973,2663.9,2663.1,0.9053]
[1729277750032,0.21759378,2663.8,2663.1,0.9053]
[1729277750188,1.00169351,2663.8,2663.1,0.9053]
[1729277750890,0.78409973,2663.7,2663.1,0.9053]
[1729277751719,0.78409973,2663.6,2663.1,0.9053]
[1729277752489,0.78409973,2663.7,2663.1,0.9053]
[1729277752725,1.00188955,2663.6,2663.1,0.9053]
[1729277752987,0.78409973,2663.7,2663.1,0.9053]
[1729277753188,0.78409973,2663.9,2663.1,0.9053]
[1729277753429,0.78409973,2663.8,2663.1,0.9053]
[1729277753586,0.78409973,2663.9,2663.1,0.9053]
[1729277753793,0.78409973,2663.8,2663.1,0.9053]
[1729277754329,0.78409973,2663.9,2663.1,0.9053]
[1729277754533,0.78409973,2663.8,2663.1,0.9053]
[1729277756119,0.78409973,2663.7,2663.1,0.9053]
[1729277757540,0.78409973,2663.6,2663.1,0.9053]
[1729277758247,0.78409973,2663.7,2663.1,0.9053]
[1729277758763,0.78409973,2663.6,2663.1,0.9053]
[1729277758964,0.78409973,2663.7,2663.1,0.9053]
[1729277759126,0.78409973,2663.6,2663.1,0.9053]
[1729277759464,0.78409973,2663.7,2663.1,0.9053]
[1729277759666,0.78409973,2663.6,2663.1,0.9053]
[1729277760748,0.98013017,2663.6,2663.1,0.9053]
[1729277760957,0.78409973,2663.5,2663.1,0.9053]
[1729277761263,0.78409973,2663.4,2663.1,0.9053]
[1729277761767,0.78409973,2663.3,2663.1,0.9053]
[1729277764859,0.78409973,2663.2,2663.1,0.9053]
[1729277765065,0.78409973,2663.3,2663.1,0.9053]
[1729277765453,1.17620464,2663.4,2663.1,0.9053]
[1729277765454,0.78409973,2663.2,2663.1,0.9053]
[1729277765764,1.56835318,2663.2,2662.8,0.9577]
[1729277765924,0.78649252,2662.9,2662.8,0.9577]
[1729277766366,1.17973878,2663.0,2662.8,0.9577]
[1729277766523,1.17973878,2662.9,2662.8,0.9577]
[1729277766725,1.45454798,2662.9,2662.8,0.9577]
[1729277767266,1.45454798,2662.9,2662.1,0.8829]
[1729277767563,0.78625824,2662.7,2662.1,0.8829]
[1729277768179,0.78625824,2662.6,2662.1,0.8829]
[1729277769451,1.04965824,2662.6,2662.1,0.8829]
[1729277769756,0.2229397,2662.5,2662.1,0.8829]
[1729277771045,1.04965824,2662.6,2662.1,0.8829]
[1729277771272,0.2634,2662.6,2662.1,0.8829]
[1729277771578,1.04965824,2662.6,2662.1,0.8829]
[1729277771781,1.04965824,2662.6,2661.6,1.47886857]
[1729277771984,0.78625824,2662.5,2661.6,1.47886857]